[Event "*** Titled Tuesday Blitz"]
[Site "Chess.com"]
[Date "2021.04.20"]
[Round "8"]
[White "VD_coach"]
[Black "Aygehovit1992"]
[Result "0-1"]
[WhiteElo "2500"]
[BlackElo "2672"]
[TimeControl "180+1"]
[EndTime "11:26:35 PDT"]
[Termination "Aygehovit1992 won on time"]

1. Nf3 {[%clk 0:03:00.7]} 1... g6 {[%clk 0:02:59.8]} 2. d4 {[%clk 0:02:58.6]}
2... Bg7 {[%clk 0:03:00.7]} 3. c4 {[%clk 0:02:58.6]} 3... Nf6 {[%clk 0:03:00.4]}
4. Nc3 {[%clk 0:02:58.5]} 4... c5 {[%clk 0:02:59.8]} 5. e3 {[%clk 0:02:52.9]}
5... O-O {[%clk 0:02:58.5]} 6. Be2 {[%clk 0:02:52.2]} 6... d5 {[%clk 0:02:58.7]}
7. O-O {[%clk 0:02:50.2]} 7... cxd4 {[%clk 0:02:58]} 8. exd4 {[%clk 0:02:50.1]}
8... Nc6 {[%clk 0:02:58.3]} 9. Re1 {[%clk 0:02:47.5]} 9... Bg4 {[%clk
0:02:54.9]} 10. cxd5 {[%clk 0:02:46.4]} 10... Nxd5 {[%clk 0:02:54.5]} 11. h3
{[%clk 0:02:46.4]} 11... Bf5 {[%clk 0:02:38.8]} 12. Bg5 {[%clk 0:02:37.6]} 12...
h6 {[%clk 0:02:35.2]} 13. Bh4 {[%clk 0:02:35.3]} 13... g5 {[%clk 0:02:35.1]} 14.
Bg3 {[%clk 0:02:34.7]} 14... Rc8 {[%clk 0:02:28.2]} 15. Rc1 {[%clk 0:02:24.8]}
15... e6 {[%clk 0:02:26.8]} 16. a3 {[%clk 0:01:47.3]} 16... Nxc3 {[%clk
0:02:16.1]} 17. bxc3 {[%clk 0:01:46.4]} 17... Qa5 {[%clk 0:02:10]} 18. Qb3
{[%clk 0:01:45.9]} 18... b6 {[%clk 0:02:05.9]} 19. Bb5 {[%clk 0:01:39.3]} 19...
Rfd8 {[%clk 0:02:03.6]} 20. Bxc6 {[%clk 0:01:29.6]} 20... Rxc6 {[%clk
0:02:04.5]} 21. Be5 {[%clk 0:01:18.3]} 21... f6 {[%clk 0:01:57.8]} 22. Bg3
{[%clk 0:01:11.8]} 22... Qd5 {[%clk 0:01:58]} 23. Qb2 {[%clk 0:01:05]} 23...
Rdc8 {[%clk 0:01:51.5]} 24. Re3 {[%clk 0:00:59.4]} 24... Kf7 {[%clk 0:01:46.8]}
25. Rce1 {[%clk 0:00:57.7]} 25... Qa5 {[%clk 0:01:35.9]} 26. Rc1 {[%clk
0:00:32.4]} 26... Bf8 {[%clk 0:01:33.5]} 27. c4 {[%clk 0:00:20]} 27... Rxc4
{[%clk 0:01:31.7]} 28. Rxc4 {[%clk 0:00:20.4]} 28... Rxc4 {[%clk 0:01:32.5]} 29.
d5 {[%clk 0:00:18.6]} 29... Qxd5 {[%clk 0:01:31.2]} 30. Kh2 {[%clk 0:00:16.2]}
30... Bc5 {[%clk 0:01:29.6]} 31. Re2 {[%clk 0:00:11.1]} 31... Qd3 {[%clk
0:01:08.6]} 32. Be5 {[%clk 0:00:07.5]} 32... Rc2 {[%clk 0:00:55.6]} 33. Rxc2
{[%clk 0:00:04.6]} 33... Qxc2 {[%clk 0:00:56.5]} 34. Qb5 {[%clk 0:00:04.6]}
34... Qd3 {[%clk 0:00:50.5]} 35. Qc6 {[%clk 0:00:04.6]} 35... Qd8 {[%clk
0:00:44.5]} 36. Bc3 {[%clk 0:00:02.8]} 36... Qd6+ {[%clk 0:00:42.7]} 37. Qxd6
{[%clk 0:00:01.1]} 37... Bxd6+ {[%clk 0:00:43.6]} 0-1

[Event "*** Titled Tuesday Blitz"]
[Site "Chess.com"]
[Date "2021.04.20"]
[Round "8"]
[White "RobertoJBM"]
[Black "Vesper2018"]
[Result "1-0"]
[WhiteElo "2720"]
[BlackElo "2524"]
[TimeControl "180+1"]
[EndTime "11:26:38 PDT"]
[Termination "RobertoJBM won on time"]

1. d4 {[%clk 0:03:00.9]} 1... Nf6 {[%clk 0:02:59.9]} 2. c4 {[%clk 0:03:00.4]}
2... g6 {[%clk 0:03:00]} 3. Nc3 {[%clk 0:02:59.7]} 3... Bg7 {[%clk 0:03:00.3]}
4. e4 {[%clk 0:02:59.2]} 4... d6 {[%clk 0:03:00.7]} 5. f3 {[%clk 0:02:58.5]}
5... O-O {[%clk 0:03:00.7]} 6. Be3 {[%clk 0:02:58]} 6... c5 {[%clk 0:02:59.4]}
7. dxc5 {[%clk 0:02:57.1]} 7... dxc5 {[%clk 0:02:58.6]} 8. Qxd8 {[%clk 0:02:58]}
8... Rxd8 {[%clk 0:02:58.8]} 9. Bxc5 {[%clk 0:02:55]} 9... Nc6 {[%clk
0:02:58.5]} 10. Rd1 {[%clk 0:02:53.5]} 10... Rxd1+ {[%clk 0:02:52.5]} 11. Kxd1
{[%clk 0:02:53.3]} 11... b6 {[%clk 0:02:53.1]} 12. Be3 {[%clk 0:02:52.3]} 12...
Be6 {[%clk 0:02:45.7]} 13. Kc1 {[%clk 0:02:49.8]} 13... Rc8 {[%clk 0:02:41.2]}
14. Kb1 {[%clk 0:02:49.5]} 14... Nd7 {[%clk 0:02:36.5]} 15. Nd5 {[%clk
0:02:46.8]} 15... Bxd5 {[%clk 0:02:23]} 16. cxd5 {[%clk 0:02:44.2]} 16... Nb4
{[%clk 0:02:21.8]} 17. a3 {[%clk 0:02:27.6]} 17... Nc2 {[%clk 0:02:20.5]} 18.
Ba6 {[%clk 0:02:20]} 18... Rc7 {[%clk 0:02:08.3]} 19. Bf4 {[%clk 0:02:05.6]}
19... Be5 {[%clk 0:01:38.5]} 20. Ne2 {[%clk 0:01:57.9]} 20... Bxf4 {[%clk
0:01:07.2]} 21. Nxf4 {[%clk 0:01:55.8]} 21... Nc5 {[%clk 0:01:01.4]} 22. Be2
{[%clk 0:01:38.6]} 22... Nd4 {[%clk 0:00:54.9]} 23. Rd1 {[%clk 0:01:34.1]} 23...
Ncb3 {[%clk 0:00:51.6]} 24. Bd3 {[%clk 0:01:28.1]} 24... a5 {[%clk 0:00:40.5]}
25. Ne2 {[%clk 0:01:23]} 25... e5 {[%clk 0:00:31.9]} 26. dxe6 {[%clk 0:01:20.5]}
26... fxe6 {[%clk 0:00:32.2]} 27. Nxd4 {[%clk 0:01:19.3]} 27... Nxd4 {[%clk
0:00:31.8]} 28. e5 {[%clk 0:01:19.6]} 28... Nb3 {[%clk 0:00:27.2]} 29. Bc2
{[%clk 0:01:15.9]} 29... Nc5 {[%clk 0:00:26.4]} 30. Rd6 {[%clk 0:01:12.5]} 30...
b5 {[%clk 0:00:26.6]} 31. Rb6 {[%clk 0:01:02.3]} 31... Rb7 {[%clk 0:00:11.9]}
32. Rxb7 {[%clk 0:00:47.8]} 32... Nxb7 {[%clk 0:00:11.8]} 33. b4 {[%clk
0:00:48.7]} 33... axb4 {[%clk 0:00:10.7]} 34. axb4 {[%clk 0:00:49.6]} 34... Nd8
{[%clk 0:00:10.3]} 35. Be4 {[%clk 0:00:49]} 35... g5 {[%clk 0:00:08.4]} 36. g3
{[%clk 0:00:48.6]} 36... h5 {[%clk 0:00:02.7]} 37. f4 {[%clk 0:00:44.7]} 37...
gxf4 {[%clk 0:00:02.7]} 38. gxf4 {[%clk 0:00:45.6]} 38... h4 {[%clk 0:00:03.2]}
39. h3 {[%clk 0:00:44.5]} 39... Kg7 {[%clk 0:00:03.6]} 40. Kc2 {[%clk
0:00:44.5]} 40... Kh6 {[%clk 0:00:02.5]} 41. Kd3 {[%clk 0:00:44.6]} 1-0

[Event "*** Titled Tuesday Blitz"]
[Site "Chess.com"]
[Date "2021.04.20"]
[Round "8"]
[White "CM_rui"]
[Black "Cuajada_Zero"]
[Result "1-0"]
[WhiteElo "2465"]
[BlackElo "2301"]
[TimeControl "180+1"]
[EndTime "11:26:39 PDT"]
[Termination "CM_rui won on time"]

1. e4 {[%clk 0:03:00.9]} 1... c6 {[%clk 0:02:59.9]} 2. d4 {[%clk 0:03:00.8]}
2... d5 {[%clk 0:03:00]} 3. Nc3 {[%clk 0:03:01.7]} 3... dxe4 {[%clk 0:03:00]} 4.
Nxe4 {[%clk 0:03:02.6]} 4... Nf6 {[%clk 0:03:00]} 5. Nxf6+ {[%clk 0:03:03.2]}
5... exf6 {[%clk 0:03:00.9]} 6. Ne2 {[%clk 0:03:03.5]} 6... Bd6 {[%clk
0:03:00.6]} 7. Ng3 {[%clk 0:03:03]} 7... O-O {[%clk 0:03:00.9]} 8. Bd3 {[%clk
0:02:58.7]} 8... Re8+ {[%clk 0:03:00.2]} 9. Be3 {[%clk 0:02:56.1]} 9... Nd7
{[%clk 0:02:58]} 10. Qf3 {[%clk 0:02:51.5]} 10... Nf8 {[%clk 0:02:55.9]} 11.
O-O-O {[%clk 0:02:48.6]} 11... Qa5 {[%clk 0:02:54.5]} 12. Kb1 {[%clk 0:02:46.4]}
12... Be6 {[%clk 0:02:53.9]} 13. c4 {[%clk 0:02:44]} 13... Rac8 {[%clk
0:02:44.3]} 14. Ne4 {[%clk 0:02:36.9]} 14... Bb8 {[%clk 0:02:35.6]} 15. h4
{[%clk 0:02:16]} 15... b5 {[%clk 0:02:32.7]} 16. h5 {[%clk 0:01:59.4]} 16...
bxc4 {[%clk 0:02:30.8]} 17. Bc2 {[%clk 0:01:59.4]} 17... Bd5 {[%clk 0:00:22.1]}
18. h6 {[%clk 0:01:27.5]} 18... c3 {[%clk 0:00:21.8]} 19. b3 {[%clk 0:01:18]}
19... Rxe4 {[%clk 0:00:20.8]} 20. Bxe4 {[%clk 0:01:16.2]} 20... Bxb3 {[%clk
0:00:20.8]} 21. axb3 {[%clk 0:01:04.5]} 21... Qa3 {[%clk 0:00:19.5]} 22. Qe2
{[%clk 0:00:55.8]} 22... Qxb3+ {[%clk 0:00:18.9]} 23. Ka1 {[%clk 0:00:53.5]}
23... Bd6 {[%clk 0:00:09.5]} 24. hxg7 {[%clk 0:00:46.6]} 24... Ne6 {[%clk
0:00:05.7]} 25. Bxh7+ {[%clk 0:00:43.1]} 25... Kxg7 {[%clk 0:00:05.1]} 26. Bb1
{[%clk 0:00:08.2]} 26... Ba3 {[%clk 0:00:04.7]} 27. Bh6+ {[%clk 0:00:08]} 27...
Kg8 {[%clk 0:00:04.2]} 28. Qg4+ {[%clk 0:00:06.2]} 28... Ng5 {[%clk 0:00:01.3]}
29. Qxc8+ {[%clk 0:00:07.1]} 1-0

[Event "*** Titled Tuesday Blitz"]
[Site "Chess.com"]
[Date "2021.04.20"]
[Round "8"]
[White "A-S-00"]
[Black "PawnEatingZombie"]
[Result "1-0"]
[WhiteElo "2324"]
[BlackElo "2178"]
[TimeControl "180+1"]
[EndTime "11:26:41 PDT"]
[Termination "A-S-00 won on time"]

1. e4 {[%clk 0:02:58.5]} 1... c6 {[%clk 0:02:24.4]} 2. d4 {[%clk 0:02:56.4]}
2... d5 {[%clk 0:02:24.2]} 3. exd5 {[%clk 0:02:53.2]} 3... cxd5 {[%clk 0:02:24]}
4. c4 {[%clk 0:02:52]} 4... Nf6 {[%clk 0:02:23.7]} 5. Nf3 {[%clk 0:02:49.9]}
5... g6 {[%clk 0:02:23.3]} 6. Nc3 {[%clk 0:02:40.8]} 6... Bg7 {[%clk 0:02:23.2]}
7. Be2 {[%clk 0:02:32.5]} 7... O-O {[%clk 0:02:22.2]} 8. O-O {[%clk 0:02:31.6]}
8... Nc6 {[%clk 0:02:21.5]} 9. h3 {[%clk 0:02:21.3]} 9... dxc4 {[%clk
0:02:20.7]} 10. Bxc4 {[%clk 0:02:20.4]} 10... b6 {[%clk 0:02:20.3]} 11. Bg5
{[%clk 0:02:15.2]} 11... Bb7 {[%clk 0:02:19.4]} 12. Re1 {[%clk 0:02:12.4]} 12...
Rc8 {[%clk 0:02:16.7]} 13. Bb3 {[%clk 0:02:07.5]} 13... Na5 {[%clk 0:02:14]} 14.
Bc2 {[%clk 0:01:44]} 14... Nc4 {[%clk 0:02:00.8]} 15. Bc1 {[%clk 0:01:41.8]}
15... Nd5 {[%clk 0:01:35.3]} 16. Qe2 {[%clk 0:01:32.9]} 16... e6 {[%clk
0:01:26.5]} 17. Be4 {[%clk 0:01:27.3]} 17... Nxc3 {[%clk 0:01:23.9]} 18. bxc3
{[%clk 0:01:26.2]} 18... Bxe4 {[%clk 0:01:23.7]} 19. Qxe4 {[%clk 0:01:25.1]}
19... Nd6 {[%clk 0:01:19.5]} 20. Qd3 {[%clk 0:01:21.9]} 20... Qc7 {[%clk
0:01:17.3]} 21. Bf4 {[%clk 0:01:17.1]} 21... Rfd8 {[%clk 0:01:16.3]} 22. Rac1
{[%clk 0:01:13.1]} 22... Qc4 {[%clk 0:01:13.8]} 23. Qd2 {[%clk 0:01:11.3]} 23...
Nb5 {[%clk 0:01:04.3]} 24. Ne5 {[%clk 0:01:01.5]} 24... Qa4 {[%clk 0:00:56.4]}
25. Ng4 {[%clk 0:00:47.1]} 25... Nd6 {[%clk 0:00:43.1]} 26. Bh6 {[%clk
0:00:39.8]} 26... Nf5 {[%clk 0:00:31.7]} 27. Bxg7 {[%clk 0:00:39]} 27... Kxg7
{[%clk 0:00:32.3]} 28. Qf4 {[%clk 0:00:37.9]} 28... Qb5 {[%clk 0:00:26.3]} 29.
Re5 {[%clk 0:00:31.7]} 29... Qb2 {[%clk 0:00:22.3]} 30. Rce1 {[%clk 0:00:24.9]}
30... Rxc3 {[%clk 0:00:19.8]} 31. Rxf5 {[%clk 0:00:21]} 31... exf5 {[%clk
0:00:06.5]} 32. Qe5+ {[%clk 0:00:21]} 1-0

[Event "*** Titled Tuesday Blitz"]
[Site "Chess.com"]
[Date "2021.04.20"]
[Round "8"]
[White "Witik"]
[Black "InvisibleWarrior2252"]
[Result "0-1"]
[WhiteElo "2668"]
[BlackElo "2549"]
[TimeControl "180+1"]
[EndTime "11:26:42 PDT"]
[Termination "InvisibleWarrior2252 won on time"]

1. e4 {[%clk 0:03:00.9]} 1... c5 {[%clk 0:02:59.4]} 2. Nf3 {[%clk 0:02:57.9]}
2... d6 {[%clk 0:02:59.5]} 3. d4 {[%clk 0:02:57.7]} 3... cxd4 {[%clk 0:03:00.4]}
4. Nxd4 {[%clk 0:02:58.6]} 4... Nf6 {[%clk 0:03:01]} 5. Nc3 {[%clk 0:02:59.3]}
5... a6 {[%clk 0:03:01.9]} 6. Be3 {[%clk 0:02:59]} 6... e5 {[%clk 0:03:01.7]} 7.
Nf3 {[%clk 0:02:58.3]} 7... Be7 {[%clk 0:03:00.2]} 8. Bc4 {[%clk 0:02:58.2]}
8... Be6 {[%clk 0:02:59.8]} 9. Bxe6 {[%clk 0:02:57.7]} 9... fxe6 {[%clk
0:03:00.7]} 10. O-O {[%clk 0:02:58.3]} 10... Nbd7 {[%clk 0:02:51.8]} 11. Ng5
{[%clk 0:02:55.1]} 11... Nf8 {[%clk 0:02:51.1]} 12. f4 {[%clk 0:02:54.9]} 12...
h6 {[%clk 0:02:37.5]} 13. Nh3 {[%clk 0:02:34.4]} 13... Ng6 {[%clk 0:02:25.9]}
14. f5 {[%clk 0:02:32.6]} 14... Nf8 {[%clk 0:02:24.6]} 15. fxe6 {[%clk
0:02:15.4]} 15... Nxe6 {[%clk 0:02:25.5]} 16. Rxf6 {[%clk 0:01:52.6]} 16... Bxf6
{[%clk 0:02:18.6]} 17. Qh5+ {[%clk 0:01:52]} 17... Kd7 {[%clk 0:01:54.8]} 18.
Nd5 {[%clk 0:01:52]} 18... Qe8 {[%clk 0:01:49.4]} 19. Nb6+ {[%clk 0:01:23.1]}
19... Kc6 {[%clk 0:01:28.2]} 20. Qe2 {[%clk 0:01:18.4]} 20... Nd4 {[%clk
0:01:16]} 21. Bxd4 {[%clk 0:01:11.9]} 21... exd4 {[%clk 0:01:16.9]} 22. Nxa8
{[%clk 0:01:05.8]} 22... Qxa8 {[%clk 0:00:45.5]} 23. Nf4 {[%clk 0:01:02.1]}
23... Qe8 {[%clk 0:00:40.7]} 24. Nd5 {[%clk 0:00:58.9]} 24... Kd7 {[%clk
0:00:31.1]} 25. Qc4 {[%clk 0:00:46.9]} 25... Qd8 {[%clk 0:00:28.3]} 26. Rf1
{[%clk 0:00:40.5]} 26... Rf8 {[%clk 0:00:27.7]} 27. a4 {[%clk 0:00:25.6]} 27...
Be5 {[%clk 0:00:20.5]} 28. Rxf8 {[%clk 0:00:22.8]} 28... Qxf8 {[%clk 0:00:21.4]}
29. Qc7+ {[%clk 0:00:21.7]} 29... Ke6 {[%clk 0:00:21.7]} 30. Qxb7 {[%clk
0:00:20.4]} 30... d3 {[%clk 0:00:22]} 0-1

[Event "*** Titled Tuesday Blitz"]
[Site "Chess.com"]
[Date "2021.04.20"]
[Round "8"]
[White "Sjakkerntobi"]
[Black "MVM2008"]
[Result "0-1"]
[WhiteElo "2376"]
[BlackElo "2182"]
[TimeControl "180+1"]
[EndTime "11:26:42 PDT"]
[Termination "MVM2008 won by resignation"]

1. e4 {[%clk 0:02:46.5]} 1... e5 {[%clk 0:02:54.7]} 2. Nf3 {[%clk 0:02:45.3]}
2... Nf6 {[%clk 0:02:55.3]} 3. Nxe5 {[%clk 0:02:29.6]} 3... Nc6 {[%clk
0:02:54.9]} 4. Nxc6 {[%clk 0:02:26.2]} 4... dxc6 {[%clk 0:02:55.8]} 5. d3 {[%clk
0:02:22.9]} 5... Bc5 {[%clk 0:02:55.2]} 6. c3 {[%clk 0:02:06.5]} 6... Nxe4
{[%clk 0:02:28.3]} 7. d4 {[%clk 0:01:40.3]} 7... Bd6 {[%clk 0:02:26]} 8. Bd3
{[%clk 0:01:39.4]} 8... Nf6 {[%clk 0:02:25.3]} 9. h3 {[%clk 0:01:27.5]} 9... Be6
{[%clk 0:02:22.6]} 10. O-O {[%clk 0:01:27.3]} 10... Qd7 {[%clk 0:02:22.2]} 11.
a4 {[%clk 0:01:26.5]} 11... O-O-O {[%clk 0:02:07.5]} 12. b4 {[%clk 0:01:23.9]}
12... h5 {[%clk 0:02:02.7]} 13. b5 {[%clk 0:01:23.1]} 13... Bxh3 {[%clk
0:02:01.8]} 14. bxc6 {[%clk 0:01:12.5]} 14... Qe6 {[%clk 0:00:56.8]} 15. Re1
{[%clk 0:01:01.3]} 15... Qg4 {[%clk 0:00:37.6]} 16. Qxg4+ {[%clk 0:00:53.3]}
16... Bxg4 {[%clk 0:00:38.5]} 17. cxb7+ {[%clk 0:00:49.8]} 17... Kxb7 {[%clk
0:00:39.4]} 18. Na3 {[%clk 0:00:48.1]} 18... Rhe8 {[%clk 0:00:38.3]} 19. Be3
{[%clk 0:00:47.4]} 19... Nd5 {[%clk 0:00:32.6]} 20. Rab1+ {[%clk 0:00:44.9]}
20... Ka8 {[%clk 0:00:27.9]} 21. Bb5 {[%clk 0:00:41.3]} 21... Bd7 {[%clk
0:00:22.8]} 22. Bd2 {[%clk 0:00:37.7]} 22... Rxe1+ {[%clk 0:00:16.4]} 23. Rxe1
{[%clk 0:00:37.1]} 23... Bxa3 {[%clk 0:00:14.7]} 24. Bxd7 {[%clk 0:00:30.8]}
24... Rxd7 {[%clk 0:00:15.6]} 25. c4 {[%clk 0:00:31.5]} 25... Nf6 {[%clk
0:00:13.7]} 26. d5 {[%clk 0:00:31]} 26... c6 {[%clk 0:00:11.6]} 27. dxc6 {[%clk
0:00:28.1]} 27... Rxd2 {[%clk 0:00:09.2]} 28. Re3 {[%clk 0:00:15.1]} 28... Rd1+
{[%clk 0:00:08.4]} 29. Kh2 {[%clk 0:00:15.1]} 29... Ng4+ {[%clk 0:00:08.7]} 30.
Kg3 {[%clk 0:00:15.1]} 30... Nxe3 {[%clk 0:00:09.3]} 31. fxe3 {[%clk 0:00:15.9]}
31... Rc1 {[%clk 0:00:09.4]} 32. c7 {[%clk 0:00:15.7]} 32... Rxc4 {[%clk
0:00:09.2]} 33. c8=Q+ {[%clk 0:00:14.1]} 33... Rxc8 {[%clk 0:00:10.1]} 0-1

[Event "*** Titled Tuesday Blitz"]
[Site "Chess.com"]
[Date "2021.04.20"]
[Round "8"]
[White "moro182"]
[Black "Fh2411"]
[Result "1-0"]
[WhiteElo "2707"]
[BlackElo "2560"]
[TimeControl "180+1"]
[EndTime "11:26:44 PDT"]
[Termination "moro182 won by resignation"]

1. d4 {[%clk 0:03:00.9]} 1... d5 {[%clk 0:02:59.7]} 2. c4 {[%clk 0:03:00.1]}
2... c6 {[%clk 0:03:00.1]} 3. Nc3 {[%clk 0:02:59.9]} 3... Nf6 {[%clk 0:03:00.1]}
4. Nf3 {[%clk 0:03:00.2]} 4... a6 {[%clk 0:02:58.4]} 5. cxd5 {[%clk 0:02:56.2]}
5... cxd5 {[%clk 0:02:58.3]} 6. Bf4 {[%clk 0:02:56.5]} 6... Nc6 {[%clk 0:02:58]}
7. e3 {[%clk 0:02:56]} 7... Bf5 {[%clk 0:02:57.4]} 8. Rc1 {[%clk 0:02:54.8]}
8... e6 {[%clk 0:02:56.8]} 9. a3 {[%clk 0:02:52.7]} 9... Be7 {[%clk 0:02:54.4]}
10. Be2 {[%clk 0:02:48.8]} 10... O-O {[%clk 0:02:54.2]} 11. O-O {[%clk
0:02:48.9]} 11... Rc8 {[%clk 0:02:36.8]} 12. Na4 {[%clk 0:02:47.6]} 12... Ne4
{[%clk 0:02:31]} 13. Nd2 {[%clk 0:02:44.1]} 13... Na5 {[%clk 0:01:37.6]} 14.
Nxe4 {[%clk 0:02:37.1]} 14... Bxe4 {[%clk 0:01:33.1]} 15. Nc5 {[%clk 0:02:34.4]}
15... Bxc5 {[%clk 0:01:18]} 16. dxc5 {[%clk 0:02:33.1]} 16... Qf6 {[%clk
0:01:11.9]} 17. b4 {[%clk 0:02:30.1]} 17... Nc6 {[%clk 0:01:08.6]} 18. Bd6
{[%clk 0:02:30.1]} 18... Rfe8 {[%clk 0:01:07.7]} 19. Qd2 {[%clk 0:02:29.3]}
19... Ne5 {[%clk 0:01:02]} 20. Qd4 {[%clk 0:02:16]} 20... Qg6 {[%clk 0:00:33.2]}
21. f3 {[%clk 0:02:05.8]} 21... Nc6 {[%clk 0:00:33.2]} 22. Qd2 {[%clk 0:02:01]}
22... Bf5 {[%clk 0:00:32.8]} 23. a4 {[%clk 0:01:59.6]} 23... Qh6 {[%clk
0:00:23.2]} 24. b5 {[%clk 0:01:52.8]} 24... axb5 {[%clk 0:00:24.1]} 25. axb5
{[%clk 0:01:52.9]} 25... Ne7 {[%clk 0:00:24.3]} 26. Bf4 {[%clk 0:01:39.4]} 26...
Qf6 {[%clk 0:00:23.5]} 27. Qd4 {[%clk 0:01:37.5]} 27... Qxd4 {[%clk 0:00:17.6]}
28. exd4 {[%clk 0:01:38.4]} 28... Ra8 {[%clk 0:00:12.5]} 29. Ra1 {[%clk
0:01:35.9]} 29... f6 {[%clk 0:00:11.5]} 30. Bd6 {[%clk 0:01:33.2]} 30... Kf7
{[%clk 0:00:11.7]} 31. c6 {[%clk 0:01:25.7]} 31... bxc6 {[%clk 0:00:11.2]} 32.
b6 {[%clk 0:01:25.6]} 32... Rab8 {[%clk 0:00:07.1]} 33. Bxb8 {[%clk 0:01:17]}
33... Rxb8 {[%clk 0:00:08]} 34. Ra6 {[%clk 0:01:17]} 34... Nc8 {[%clk
0:00:07.3]} 35. Rc1 {[%clk 0:01:15.2]} 35... Nxb6 {[%clk 0:00:05.2]} 36. Rxc6
{[%clk 0:01:10.8]} 36... Nc4 {[%clk 0:00:05.4]} 37. Bxc4 {[%clk 0:01:07.8]}
37... dxc4 {[%clk 0:00:06.3]} 38. Rxc4 {[%clk 0:01:08.2]} 38... Bd3 {[%clk
0:00:05.8]} 39. Rc7+ {[%clk 0:01:07.8]} 39... Kg6 {[%clk 0:00:05.9]} 40. Raa7
{[%clk 0:01:08.2]} 40... Rb1+ {[%clk 0:00:06.1]} 41. Kf2 {[%clk 0:01:08.1]}
41... Kf5 {[%clk 0:00:04.5]} 42. Rxg7 {[%clk 0:01:02.9]} 42... Bc4 {[%clk
0:00:04.4]} 43. Ra5+ {[%clk 0:00:59.6]} 43... Bd5 {[%clk 0:00:02.7]} 44. Rxh7
{[%clk 0:00:54.9]} 44... Rb2+ {[%clk 0:00:03]} 45. Kg3 {[%clk 0:00:54.9]} 45...
Rd2 {[%clk 0:00:03]} 46. Rh5+ {[%clk 0:00:53]} 46... Kg6 {[%clk 0:00:03.6]} 47.
Rhxd5 {[%clk 0:00:52.8]} 47... exd5 {[%clk 0:00:04.5]} 48. Rxd5 {[%clk
0:00:52.9]} 1-0

[Event "*** Titled Tuesday Blitz"]
[Site "Chess.com"]
[Date "2021.04.20"]
[Round "8"]
[White "GMSrinath"]
[Black "biostatistician"]
[Result "1-0"]
[WhiteElo "2843"]
[BlackElo "2608"]
[TimeControl "180+1"]
[EndTime "11:26:46 PDT"]
[Termination "GMSrinath won by resignation"]

1. Nf3 {[%clk 0:03:00.3]} 1... Nf6 {[%clk 0:02:58.9]} 2. b3 {[%clk 0:03:00.5]}
2... g6 {[%clk 0:02:59.8]} 3. Bb2 {[%clk 0:03:00.8]} 3... Bg7 {[%clk 0:03:00.7]}
4. g3 {[%clk 0:03:01.4]} 4... O-O {[%clk 0:03:01.3]} 5. Bg2 {[%clk 0:03:02]}
5... b6 {[%clk 0:03:02]} 6. O-O {[%clk 0:03:02.3]} 6... Bb7 {[%clk 0:03:01.5]}
7. c4 {[%clk 0:03:02.9]} 7... c5 {[%clk 0:03:00.2]} 8. d4 {[%clk 0:03:03.1]}
8... Ne4 {[%clk 0:03:00.3]} 9. Ng5 {[%clk 0:02:56.2]} 9... d5 {[%clk 0:02:57.1]}
10. Nxe4 {[%clk 0:02:40.9]} 10... dxe4 {[%clk 0:02:58]} 11. e3 {[%clk
0:02:41.6]} 11... f5 {[%clk 0:02:37.1]} 12. Na3 {[%clk 0:02:26.7]} 12... Nc6
{[%clk 0:02:35.3]} 13. Nc2 {[%clk 0:02:27.1]} 13... Qd7 {[%clk 0:02:20]} 14. Rb1
{[%clk 0:02:26.1]} 14... Rad8 {[%clk 0:02:18.4]} 15. d5 {[%clk 0:02:19.9]} 15...
Ne5 {[%clk 0:02:14.2]} 16. Bxe5 {[%clk 0:02:12]} 16... Bxe5 {[%clk 0:02:14.4]}
17. f3 {[%clk 0:02:12.4]} 17... exf3 {[%clk 0:02:10.5]} 18. Qxf3 {[%clk
0:02:12.5]} 18... e6 {[%clk 0:02:09.4]} 19. Rbd1 {[%clk 0:02:08.3]} 19... exd5
{[%clk 0:02:07.1]} 20. cxd5 {[%clk 0:02:09.2]} 20... b5 {[%clk 0:01:56.2]} 21.
Qe2 {[%clk 0:01:53.9]} 21... Rfe8 {[%clk 0:01:47.2]} 22. Kh1 {[%clk 0:01:49.9]}
22... Qd6 {[%clk 0:01:35.6]} 23. Na3 {[%clk 0:01:24.7]} 23... a6 {[%clk
0:01:33.4]} 24. Nc2 {[%clk 0:01:24.5]} 24... Re7 {[%clk 0:01:31.5]} 25. a4
{[%clk 0:01:24.5]} 25... Qb6 {[%clk 0:01:29.6]} 26. e4 {[%clk 0:01:17.1]} 26...
fxe4 {[%clk 0:01:23.9]} 27. Qxe4 {[%clk 0:01:18]} 27... Rde8 {[%clk 0:01:14]}
28. Qf3 {[%clk 0:00:56.7]} 28... c4 {[%clk 0:01:08.8]} 29. bxc4 {[%clk
0:00:50.1]} 29... bxc4 {[%clk 0:01:09.7]} 30. Ne3 {[%clk 0:00:50.6]} 30... Qb3
{[%clk 0:01:01.5]} 31. Rb1 {[%clk 0:00:48.3]} 31... Qa3 {[%clk 0:00:37.3]} 32.
Nxc4 {[%clk 0:00:33.2]} 32... Qxf3 {[%clk 0:00:23.7]} 33. Bxf3 {[%clk
0:00:34.1]} 33... Ba8 {[%clk 0:00:20.4]} 34. d6 {[%clk 0:00:29]} 34... Bxf3+
{[%clk 0:00:18.9]} 35. Rxf3 {[%clk 0:00:29]} 35... Rd7 {[%clk 0:00:09.4]} 36.
Re1 {[%clk 0:00:26.2]} 1-0